[Event "26th Hit Open-A 2022"]
[Site "Nova Gorica"]
[Date "2022.09.20"]
[Round "7.6"]
[White "Fercec, Nenad"]
[Black "Seo, Jung Min"]
[Result "1/2-1/2"]
[ECO "B53"]
[WhiteElo "2403"]
[BlackElo "2516"]
[Annotator "TA"]
[PlyCount "168"]
[EventDate "2022.09.16"]
[EventType "swiss"]
[EventCountry "SLO"]
[SourceTitle "playchess.com"]
[Source "ChessBase"]
[SourceQuality "1"]
[TimeControl "5400+30"]

{[%evp 9,168,6,16,10,12,6,14,0,0,0,27,0,0,0,9,0,0,0,0,-32,-22,-31,-35,-46,-39,-47,0,-48,-12,-17,-16,-10,0,0,0,0,0,0,0,-34,-44,-34,0,0,-2,-32,-24,-19,44,33,72,73,83,77,77,77,78,67,80,59,65,43,86,87,87,61,57,57,110,110,127,118,126,127,127,127,169,169,138,138,169,169,622,622,622,622,616,599,576,333,289,282,152,130,130,130,162,50,50,50,50,50,50,50,50,16,16,16,50,50,50,20,20,20,20,20,20,20,16,16,50,0,18,0,50,8,8,0,50,50,50,50,50,50,51,55,57,18,66,73,73,8,8,0,0,8,9,9,16,16,16,16,26,26,26,26,26,26,26,26,26]} 1. e4 {[%emt 0:00:10]} c5 {[%emt 0:00:01]} 2. Nf3 {[%emt 0:00:07]} d6 {[%emt 0:00:02]} 3. d4 {[%emt 0:00:07]} cxd4 {[%emt 0:00:30]} 4. Qxd4 {[%emt 0:00:18]} Nc6 {[%emt 0:00:08]} 5. Qe3 {[%emt 0:00:07]} g6 {[%emt 0:00:37] CPLX 2.1 10 (Ng8-f6) (=10)} 6. Be2 {[%emt 0:00:09] BESTDEEP. B53: Sicilian: 2...d6: Lines with Qxd4.} Bg7 {[%emt 0:00:59] BESTDEEP} 7. O-O {[%emt 0:00:15] CPLX 2.2 6 (Nb1-c3) (=3)} Nf6 {[%emt 0:00:03] CPLX 2.1} 8. h3 {[%emt 0:01:46] CPLX 2.1 14 (Nb1-c3) (=7). The position is equal.} O-O {[%emt 0:00:26] BESTDEEP} 9. Rd1 {[%emt 0:00:05] CPLX 2.2 0 (Nb1-c3) (=5)} Be6 {[%emt 0:08:22] CPLX 2.3 27 (a7-a6) (=7)} 10. Nc3 {[%emt 0:02:11] CPLX 2.4 27 (Nf3-g5) (=9)} Rc8 {[%emt 0:09:29] CPLX 2.4} 11. a3 {[%emt 0:01:22] CPLX 2.4 0 (Ra1-b1) (=8)} a6 {[%emt 0:00:07] CPLX 2.4 9 (Qd8-c7) (=7)} 12. Rb1 {[%emt 0:04:40] CPLX 2.5 9 (Qe3-f4) (=8)} Qc7 {[%emt 0:07:43] [#] CPLX 2.5 0 (Nc6-a5) (=6)} 13. Qg5 $146 {[%emt 0:27:21] BESTDEEP} ({Predecessor:} 13. Nd5 Bxd5 14. exd5 Na5 15. c3 b5 16. Qd3 Qc4 17. Bg5 Qxd3 18. Bxd3 Nc4 19. Bxf6 Bxf6 20. Ne1 a5 21. Be2 {½-½ (21) Demchenko,A (2679)-Volokitin,A (2634) Germany 2019}) 13... Ne5 {[%emt 0:13:23] BESTDEEP} 14. Nd4 {[%emt 0:18:24] CPLX 3.0 32 (Nf3xe5) (=10)} Bc4 {[%emt 0:07:47] CPLX 3.0} 15. Qh4 {[%emt 0:00:06] CPLX 3.0 9 (Be2-d3) (=10)} Bxe2 {[%emt 0:01:18] CPLX 2.9} 16. Ndxe2 {[%emt 0:00:32] RECAPT} b5 {[%emt 0:01:23] CPLX 2.6} 17. Bg5 {[%emt 0:01:22] BESTDEEP} Qb7 {[%emt 0:01:13] CPLX 2.7 47 (Ne5-c4) (=7)} (17... Nc4 $15) 18. Nf4 {[%emt 0:12:42] CPLX 2.7 48 (Rd1xd6) (=11)} (18. Rxd6 $11 exd6 19. Bxf6) 18... Rfe8 {[%emt 0:04:29] CPLX 2.9 36 (Rc8-c5) (=9)} 19. Nfd5 {[%emt 0:10:28][%cal Rd5f6] CPLX 2.9 5 (Nc3-d5) (=11)} Nxd5 {[%emt 0:00:07] CPLX 3.4 1 (Ne5-d7) (=9)} 20. Nxd5 {[%emt 0:00:09] RECAPT} f6 {[%emt 0:00:32] EASY} 21. Bd2 {[%emt 0:00:05] BESTDEEP} Rxc2 {[%emt 0:25:43] CPLX 3.2 0 (g6-g5) (=8)} 22. Bc3 {[%emt 0:00:28] CPLX 3.5} Rf8 {[%emt 0:00:32] BESTDEEP} 23. Ne3 {[%emt 0:08:51] CPLX 3.5} Re2 {[%emt 0:00:26] CPLX 3.2} 24. Kf1 {[%emt 0:00:21] [#] CPLX 3.0 34 (Rb1-c1) (=10)} Rxe3 {[%emt 0:00:44] BESTDEEP} 25. fxe3 {[%emt 0:00:06] RECAPT} g5 {[%emt 0:00:01] CPLX 3.1 34 (Ne5-c4) (=8)} 26. Qg3 {[%emt 0:00:15] CPLX 3.3} Qxe4 {[%emt 0:01:50] EASY} 27. Kg1 {[%emt 0:00:08] CPLX 4.3 30 (Bc3xe5) (=10)} (27. Bxe5 $5 fxe5+ 28. Kg1 $11) 27... Nc4 {[%emt 0:00:14] CPLX 3.2} 28. Re1 {[%emt 0:00:48] CPLX 3.4 0 (Rb1-c1) (=9)} d5 {[%emt 0:03:13] RELBLUND 63 (h7-h6) (=9)} (28... h6 $11) 29. Rbd1 {[%emt 0:01:53] CPLX 3.2 11 (Qg3-g4) (=9)} e5 {[%emt 0:02:38] CPLX 3.2 39 (Rf8-c8) (=11)} 30. Qg4 {[%emt 0:06:44] CPLX 3.2} Qxg4 {[%emt 0:00:26] EASY} 31. hxg4 {[%emt 0:00:05] RECAPT} Rd8 {[%emt 0:00:03] EASY} 32. b3 {[%emt 0:00:27] BESTDEEP} Nxa3 {[%emt 0:00:18] EASY} 33. Ba5 {[%emt 0:00:09] CPLX 2.8} Rd7 {[%emt 0:00:16] EASY} 34. Rc1 $36 {[%emt 0:00:28][%mdl 2048] White fights for an advantage. CPLX 2.9 21 (Re1-e2) (=8)} Kf7 {[%emt 0:01:40] CPLX 2.9 6 (Bg7-f8) (=9)} 35. Rc8 {[%emt 0:00:59] And now Bb4 would win. BESTDEEP} b4 {[%emt 0:00:24] CPLX 3.1 43 (Bg7-f8) (=10)} 36. Bxb4 {[%emt 0:00:11] CPLX 3.1} Nb5 {[%emt 0:00:03] EASY} 37. Rec1 {[%emt 0:01:27][%mdl 1024] White has strong compensation. White is more active. CPLX 3.3 26 (Rc8-c6) (=9)} d4 {[%emt 0:00:10] CPLX 3.3} 38. e4 {[%emt 0:00:08] CPLX 3.4 0 (e3xd4) (=8)} d3 {[%emt 0:00:32] [#] CPLX 3.3 53 (Kf7-g6) (=11)} (38... Kg6 $14) 39. Kf2 $1 $16 {[%emt 0:00:23] DEEPSTRONG} Nd4 {[%emt 0:02:39] CPLX 3.8 17 (Rd7-d4) (=11)} 40. R1c7 {[%emt 0:00:48] CPLX 3.8 9 (Rc8-c7) (=8)} Rxc7 {[%emt 0:00:05] EASY} 41. Rxc7+ {[%emt 0:00:08][%mdl 4096] Endgame KRB-KBN. RECAPT} Kg6 {[%emt 0:00:01] EASY} 42. Rd7 {[%emt 0:00:32] CPLX 3.5} Nxb3 {[%emt 0:00:39] CPLX 3.6 42 (h7-h6) (=11)} 43. Rxd3 {[%emt 0:01:41] EASY} Nd4 {[%emt 0:00:02] EASY} 44. Ra3 {[%emt 0:01:19] BESTDEEP} Nc2 {[%emt 0:00:46] CPLX 2.6 31 (Nd4-c6) (=11)} 45. Ra4 {[%emt 0:00:09] Bc5 is the strong threat. CPLX 3.1} h5 $2 {[%emt 0:00:17] RELBLUND 400 (Nc2-d4) (=21)} (45... Nd4 46. Rxa6 Kf7) 46. gxh5+ $18 {[%emt 0:00:05] DEEPSTRONG=>BLUNDERREACT} Kxh5 {[%emt 0:00:03] RECAPT} 47. Bc5 {[%emt 0:00:08] CPLX 2.4} g4 {[%emt 0:01:31] CPLX 2.3 0 (a6-a5) (=20)} 48. Rxa6 {[%emt 0:00:31] CPLX 2.4 17 (Ra4-a2) (=7)} Kg5 {[%emt 0:00:09] CPLX 2.3 0 (Kh5-g6) (=20)} 49. Ra7 {[%emt 0:00:41] CPLX 2.3 243 (Ra6-a2) (=12)} Bh6 {[%emt 0:00:19] CPLX 2.5=>BLUNDERREACT} 50. g3 {[%emt 0:00:25] CPLX 2.3 7 (Ra7-a4) (=12)} Kg6 {[%emt 0:00:24] CPLX 2.4 0 (Nc2-d4) (=19)} (50... Nd4 $18 51. Bxd4 exd4) 51. Rd7 {[%emt 0:01:33] CPLX 2.4 22 (Ra7-a4) (=12)} Bc1 {[%emt 0:00:30] CPLX 2.4} 52. Ke2 {[%emt 0:01:18] CPLX 2.4} Ba3 {[%emt 0:00:04] CPLX 2.4 32 (Bc1-b2) (=19)} 53. Bxa3 {[%emt 0:00:37] CPLX 2.7 112 (Bc5-f2) (=14)} (53. Bf2 $18) 53... Nxa3 {[%emt 0:00:04] KR-KN. RECAPT} 54. Rd8 {[%emt 0:00:33] CPLX 2.1 0 (Ke2-e3) (=14)} Kg7 {[%emt 0:00:12] BESTDEEP} 55. Rb8 {[%emt 0:00:17] Kd3 would kill now. CPLX 2.0 0 (Rd8-d1) (=14)} Nc2 {[%emt 0:00:03] CPLX 2.1} 56. Kd3 {[%emt 0:00:18] CPLX 2.1 0 (Rb8-b1) (=13)} Nd4 {[%emt 0:00:14] CPLX 2.3} 57. Kc4 {[%emt 0:00:27] CPLX 2.3 34 (Rb8-d8) (=14)} Ne2 {[%emt 0:00:18] CPLX 2.2} 58. Rb3 {[%emt 0:00:10] CPLX 2.1} Nd4 {[%emt 0:00:32] CPLX 2.0 34 (f6-f5) (=17)} 59. Rb7+ {[%emt 0:00:25] CPLX 2.3 0 (Rb3-c3) (=13)} Kg6 {[%emt 0:00:05] CPLX 2.1} 60. Kd5 {[%emt 0:00:09] CPLX 2.2 30 (Rb7-b2) (=14)} Ne2 {[%emt 0:00:24] CPLX 2.3} 61. Rb3 {[%emt 0:00:12]} Kg5 {[%emt 0:00:24]} 62. Ra3 {[%emt 0:00:14]} Kg6 {[%emt 0:00:56]} 63. Re3 {[%emt 0:00:28]} Nd4 {[%emt 0:00:06]} 64. Kd6 {[%emt 0:00:51]} Nf3 {[%emt 0:00:17]} 65. Kd5 {[%emt 0:01:09]} Nd4 {[%emt 0:00:24]} 66. Ra3 {[%emt 0:00:50]} Kg7 {[%emt 0:01:25]} ({Black should play} 66... Ne2 $11) 67. Ra8 {[%emt 0:00:18]} Ne2 {[%emt 0:00:24]} 68. Ra3 {[%emt 0:00:16]} Nd4 {[%emt 0:00:05]} (68... Kg6 $11) 69. Ra2 $14 {[%emt 0:00:25]} Nf3 {[%emt 0:00:22]} 70. Ke6 {[%emt 0:00:39]} Kg6 {[%emt 0:00:14]} 71. Ra8 {[%emt 0:01:21] Threatening mate with Rg8+.} Nd4+ {[%emt 0:00:47]} 72. Ke7 {[%emt 0:00:23] aiming for Rg8+.} Kg7 {[%emt 0:00:53] Inhibits Rg8+.} 73. Ra3 {[%emt 0:00:46]} Nf3 {[%emt 0:00:42]} (73... Ne2 $11) 74. Ra6 {[%emt 0:00:29]} Ng5 {[%emt 0:00:32]} 75. Rxf6 {[%emt 0:00:28]} (75. Ra4 $16) 75... Nxe4 $11 {[%emt 0:00:02]} 76. Rf1 {[%emt 0:00:30]} Nxg3 {[%emt 0:00:07]} 77. Rg1 {[%emt 0:00:05]} Nf5+ {[%emt 0:00:07]} 78. Ke6 {[%emt 0:00:05]} Nh6 {[%emt 0:00:05]} 79. Kxe5 {[%emt 0:00:09]} Kg6 {[%emt 0:00:03]} 80. Kf4 {[%emt 0:00:06]} Kf6 {[%emt 0:00:08]} 81. Ra1 {[%emt 0:00:06] White has an edge.} Kg6 {[%emt 0:00:24]} 82. Ra6+ {[%emt 0:00:06]} Kh5 {[%emt 0:00:37]} 83. Rf6 {[%emt 0:00:12]} g3 {[%emt 0:00:29]} 84. Kxg3 {[%emt 0:00:04]} Kg5 {[%emt 0:00:02] White really could win this.  Weighted Error Value: White=0.14 (very precise) /Black=0.24 (precise)} 1/2-1/2

[Event "26th Hit Open-A 2022"]
[Site "Nova Gorica"]
[Date "2022.09.20"]
[Round "7.7"]
[White "Brilej, Jaka"]
[Black "Subelj, Jan"]
[Result "1/2-1/2"]
[ECO "B80"]
[WhiteElo "2329"]
[BlackElo "2505"]
[Annotator "TA"]
[PlyCount "141"]
[EventDate "2022.09.16"]
[EventType "swiss"]
[EventCountry "SLO"]
[SourceTitle "playchess.com"]
[Source "ChessBase"]
[SourceQuality "1"]
[TimeControl "5400+30"]

{[%evp 16,141,33,45,17,41,34,37,49,0,-5,-43,-47,-49,-45,-160,-116,-169,-169,-210,-41,-68,-43,-33,-29,-103,-52,-60,-43,-46,-54,-129,-119,-209,-208,-207,-194,-195,-208,-184,-62,-61,-65,-61,0,11,24,32,97,88,136,118,121,72,77,73,74,74,116,111,119,97,96,39,83,44,130,0,0,0,0,0,163,163,163,163,514,514,645,206,204,0,590,0,192,192,658,606,557,547,501,28,160,0,0,-24,0,0,0,-246,0,0,0,0,0,-9,-9,-9,0,0,0,0,0,-8,-8,-8,-8,-8,-8,-8,-8,-8,-8,-8,-8,-8,-8,-8]} 1. e4 {[%emt 0:00:03]} c5 {[%emt 0:00:55]} 2. Nf3 {[%emt 0:00:08]} d6 {[%emt 0:00:34]} 3. d4 {[%emt 0:00:29]} cxd4 {[%emt 0:02:08]} 4. Nxd4 {[%emt 0:00:06]} Nf6 {[%emt 0:00:19]} 5. Nc3 {[%emt 0:00:12]} a6 {[%emt 0:00:47]} 6. f3 {[%emt 0:00:08]} e6 {[%emt 0:00:40]} 7. Be3 {[%emt 0:00:48]} b5 {[%emt 0:01:13]} 8. Qd2 {[%emt 0:00:28]} Nbd7 {[%emt 0:00:55]} 9. g4 {[%emt 0:17:47] BESTDEEP} b4 {[%emt 0:02:27] B80: Sicilian Scheveningen: 6 g3 and 6 Be3, including English Attack.} 10. Nce2 {[%emt 0:02:33] CPLX 2.5} h6 {[%emt 0:01:34] BESTDEEP} 11. O-O-O {[%emt 0:05:22] BESTDEEP} (11. Qxb4 d5 12. Qa4 dxe4 $15) 11... Qc7 {[%emt 0:01:29] BESTDEEP. White is slightly better.} 12. Ng3 {[%emt 0:04:24] MISS-Qd2xb4 49 (Qd2xb4) (=12)} ({White should play} 12. Qxb4 $14 d5 13. Qc3 Qxc3 14. Nxc3) 12... d5 $11 {[%emt 0:03:40] EASY} 13. exd5 {[%emt 0:02:42] CPLX 3.0 38 (Ng3-h5) (=17)} Nxd5 {[%emt 0:00:10] RECAPT} 14. Bd3 {[%emt 0:02:49] [#] CPLX 3.2 2 (Kc1-b1) (=15)} Ne5 $146 {[%emt 0:13:41] BESTDEEP} ({Predecessor:} 14... Bc5 15. Ne4 Nxe3 16. Qxe3 Qe5 17. c3 bxc3 18. bxc3 Bb7 19. Rhe1 Rc8 20. Bc2 O-O {0-1 (31) Kruchev,B (2265)-Gabrielian,A (2563) Nalchik 2013}) 15. Nh5 {[%emt 0:12:57] RELBLUND 115 (Be3-f2) (=29)} (15. Bf2 $15) 15... g6 $17 {[%emt 0:09:57] CPLX 3.9=>BLUNDERREACT} 16. Ng3 {[%emt 0:03:27] CPLX 4.1 53 (Bd3-e4) (=32)} (16. Be4 $17 gxh5 17. Bxd5 exd5 18. Bf4 Nd3+ 19. Qxd3 Qxf4+ 20. Kb1) 16... Bg7 {[%emt 0:01:28]} 17. Bf2 {[%emt 0:05:41] CPLX 3.7 41 (Bd3-e2) (=33)} Qa5 $2 {[%emt 0:02:28] MISS-Ne5xd3 169 (Ne5xd3) (=19)} (17... Nxd3+ $19 18. Qxd3 O-O) 18. Kb1 $15 {[%emt 0:03:52] CPLX 2.9=>BLUNDERREACT} Rb8 {[%emt 0:07:08] MISS-Ne5xd3 25 (Ne5xd3) (=19)} 19. Nb3 {[%emt 0:01:53] EASY} Qc7 {[%emt 0:00:12] CPLX 3.9} 20. Qe2 {[%emt 0:03:57] RELBLUND 74 (Bf2-c5) (=31)} (20. Bc5 $11 {remains equal.}) 20... Nxd3 {[%emt 0:04:06] MISSDEEP-0-0 51 (0-0) (=20)} (20... Nf4 $6 21. Qe3 Nexd3 22. cxd3 $15) (20... O-O $1 $17 {Hoping for ...a5.} 21. Bd4 Bb7) 21. cxd3 {[%emt 0:01:41] RECAPT 8 (Qe2xd3) (=29)} O-O {[%emt 0:01:01] CPLX 4.0 17 (a6-a5) (=20)} 22. Rc1 {[%emt 0:01:48] CPLX 3.9} Qd8 {[%emt 0:00:21] CPLX 4.5 0 (Qc7-b7) (=19)} 23. Bc5 {[%emt 0:03:41] CPLX 3.0 75 (Bf2-d4) (=30)} (23. Bd4 $15 Bd7 24. Bxg7 Kxg7 25. Ne4) 23... Re8 $17 {[%emt 0:00:55] CPLX 3.2} 24. d4 {[%emt 0:02:35] CPLX 3.0 90 (Bc5-a7) (=34)} (24. Ba7 $17 {keeps fighting.} Ra8 25. Bd4) 24... a5 $1 $19 {[%emt 0:01:24][%cal Ba6a5,Ba5a4,Ba4a3][%mdl 32] CPLX 2.8=>BLUNDERREACT} 25. Ne4 {[%emt 0:00:23] CPLX 2.9} a4 $1 {[%emt 0:00:07] CPLX 3.1} 26. Nbd2 {[%emt 0:00:15][%cal Bb3d2,Bd2c4,Bc4e5][%mdl 32] CPLX 3.4} a3 {[%emt 0:00:54] CPLX 3.1} 27. b3 {[%emt 0:00:57] CPLX 3.5} Ra8 {[%emt 0:26:26] MISSDEEP-e6-e5 122 (e6-e5) (=20)} (27... e5 $1 $19 {[%cal Re5d4]} 28. dxe5 Rxe5) 28. Nc4 $15 {[%emt 0:06:27] CPLX 3.6=>BLUNDERREACT} Ba6 {[%emt 0:00:17] CPLX 3.4} 29. Qd2 {[%emt 0:00:27] BESTDEEP} Re7 {[%emt 0:01:11] RELBLUND 61 (Qd8-h4) (=21)} 30. Bxe7 $11 {[%emt 0:01:52] EASY} Nxe7 {[%emt 0:01:42] RECAPT 13 (Qd8xe7) (=21)} 31. Rhd1 {[%emt 0:01:01] CPLX 3.6} Rb8 {[%emt 0:01:42] CPLX 3.6 65 (Ba6xc4) (=23)} (31... Bxc4 $14 32. Rxc4 (32. bxc4 b3 $11) 32... Nd5) 32. Ne5 $16 {[%emt 0:04:25] BESTDEEP} (32. Nc5 Bxc4 33. Rxc4 (33. bxc4 b3 $11) 33... Nd5 $14) 32... Rb5 {[%emt 0:03:15] CPLX 4.5 48 (Ba6-b5) (=24)} (32... Bb5 $142) 33. Nc5 {[%emt 0:03:01] CPLX 4.4} Bb7 {[%emt 0:03:32] CPLX 4.2} 34. Nxb7 {[%emt 0:01:32] CPLX 4.1 49 (Qd2-d3) (=23)} ({Better is} 34. Qd3 Rb6 35. Nc4) 34... Rxb7 {[%emt 0:00:05] RECAPT} 35. Nc6 {[%emt 0:00:14] CPLX 3.6} Nxc6 {[%emt 0:00:53] CPLX 3.8} 36. Rxc6 {[%emt 0:00:08] RECAPT} Qd5 {[%emt 0:00:57] CPLX 3.1 42 (Bg7-f8) (=22)} 37. Rc8+ {[%emt 0:00:25] EASY} Kh7 {[%emt 0:00:05] EASY} 38. Qd3 {[%emt 0:00:24] CPLX 4.0 22 (Qd2-f4) (=21)} Qd6 {[%emt 0:01:04] CPLX 4.3 0 (Qd5-g5) (=20)} 39. Rc2 {[%emt 0:02:51] CPLX 4.2 57 (Rd1-d2) (=22)} (39. Rd2 $16) 39... Rd7 {[%emt 0:00:16] CPLX 3.3 44 (e6-e5) (=21)} 40. Rcd2 {[%emt 0:00:29] CPLX 3.3 39 (Qd3-b5) (=22)} e5 {[%emt 0:01:02] CPLX 3.2 86 (Qd6-b8) (=23)} (40... Qb8 $14) 41. dxe5 {[%emt 0:01:33] CPLX 3.4 130 (d4-d5) (=26)} ({White should try} 41. d5 $1 $16) 41... Qxe5 $11 {[%emt 0:00:54] RECAPT} 42. Qxd7 {[%emt 0:00:07] EASY} Qa1+ {[%emt 0:00:08] EASY} 43. Kc2 {[%emt 0:00:04][%cal Bb1c2,Bc2d3,Bd3e2,Be2f2][%mdl 32] LEGAL} Qxa2+ {[%emt 0:05:25] MISS-Qa1-c3 163 (Qa1-c3) (=26)} (43... Qc3+ $11 44. Kb1 Qa1+ 45. Kc2 Qc3+ 46. Kb1 Qa1+) 44. Kd3 $18 {[%emt 0:00:07] EASY} Qxb3+ {[%emt 0:00:05] EASY} 45. Ke2 {[%emt 0:00:10] And now Qd5 would win. EASY} Qc4+ {[%emt 0:00:13] MISS-a3-a2 351 (a3-a2) (=34)} (45... a2) 46. Qd3 {[%emt 0:01:42] CPLX 4.0} Qe6+ {[%emt 0:00:08] CPLX 4.8 131 (Qc4xd3) (=37)} 47. Qe4 $2 {[%emt 0:00:27] CPLX 4.3 400 (Ke2-f1) (=32)} (47. Kf1) 47... Qa6+ {[%emt 0:00:05] CPLX 4.6=>BLUNDERREACT} 48. Qd3 {[%emt 0:00:13] CPLX 4.3 204 (Ke2-f2) (=36)} Qe6+ {[%emt 0:00:04] RELBLUND=>BLUNDERREACT} 49. Qe4 $2 {[%emt 0:01:10] CPLX 4.3 400 (Ke2-f1) (=45)} (49. Kf1) 49... Qa6+ {[%emt 0:00:30] RELBLUND=>BLUNDERREACT} 50. Kf2 {[%emt 0:04:12] CPLX 4.3} b3 $2 {[%emt 0:01:14] MISS-a3-a2 400 (a3-a2) (=43)} (50... a2 51. Qxb4 Qa7+ 52. Kg2 a1=Q) 51. Qe8 {[%emt 0:00:20] White threatens Rd8 and mate. BESTDEEP} Qf6 {[%emt 0:01:49] BESTDEEP} 52. Rd8 {[%emt 0:00:30][%csl Gd8][%cal Re8g8] CPLX 5.7} h5 {[%emt 0:00:06] CPLX 6.7} 53. Qg8+ $2 {[%emt 0:01:06]} (53. g5 $18 {and White stays clearly on top.} Qxg5 54. Qxf7) 53... Kh6 $16 {[%emt 0:00:01] Threatens to win with ...b2.} 54. R8d5 $2 {[%emt 0:00:38]} (54. g5+ $1 $16 Qxg5 55. Qxf7) 54... hxg4 $11 {[%emt 0:00:28] Strongly threatening ...b2.} 55. R5d3 {[%emt 0:00:29]} b2 {[%emt 0:02:57]} 56. Qa8 $1 {[%emt 0:00:47]} ({But not} 56. Rxa3 $2 Qh4+ 57. Kf1 (57. Kg1 $2 Bd4+ 58. Re3 Bxe3+ 59. Kh1 Qf6 $19) 57... Qxh2 58. fxg4 (58. Qd8 $2 g3 $19) 58... Qh1+ 59. Ke2 Qxd1+ $3 {[%mdl 512]} 60. Kxd1 b1=Q+ 61. Ke2 Qb2+ 62. Ke1 Qxa3 $19) 56... Qb6+ {[%emt 0:00:19]} 57. Kg2 $2 {[%emt 0:00:19] [#]} (57. Re3 $11) 57... b1=Q $2 {[%emt 0:00:17]} (57... Qe6 $1 $19 {[%cal Re6e2] White must now prevent ...Qe2+.} 58. Qxa3 Qe2+ 59. Kg3 (59. Kh1 $2 gxf3 60. R3d2 Qxd2 $19) 59... gxf3) 58. Rxb1 {[%emt 0:00:03] The board is on fire. The position is equal.} Qxb1 {[%emt 0:00:05]} 59. Qxa3 {[%emt 0:00:11][%mdl 4096] Endgame KQR-KQB} Qc2+ {[%emt 0:01:21]} 60. Kg3 {[%emt 0:00:17]} gxf3 {[%emt 0:00:13]} 61. Kxf3 {[%emt 0:00:18]} Qxh2 {[%emt 0:00:29]} 62. Qc1+ {[%emt 0:00:42]} g5 {[%emt 0:00:39][%cal Bg6g5,Bg5g4][%mdl 32]} 63. Qc6+ $1 {[%emt 0:01:18]} Kh5 {[%emt 0:00:48]} 64. Qd7 {[%emt 0:00:05]} Qf4+ {[%emt 0:00:34]} 65. Kg2 {[%emt 0:00:16]} Qe4+ {[%emt 0:00:21]} 66. Rf3 {[%emt 0:00:28]} g4 {[%emt 0:00:35]} 67. Qf5+ {[%emt 0:00:30]} Qxf5 {[%emt 0:00:05]} 68. Rxf5+ {[%emt 0:00:04]} Kg6 {[%emt 0:00:05]} 69. Rxf7 {[%emt 0:00:05]} Kxf7 {[%emt 0:00:05]} 70. Kg3 {[%emt 0:00:03]} Ke6 {[%emt 0:00:05] ( -> ...Kf5)} 71. Kxg4 {[%emt 0:00:03] A wild game.  Weighted Error Value: White=0.54/Black=0.40} 1/2-1/2